{"text_format":"1","workbook":"xlsx","n_sheets":3,"sheets":["Beszolg útmutató","Beszolg nyugta 1-2","Beszolg nyugta 3-4"],"not_rendered":{"charts":0,"images":0,"macros":1,"external_links":0,"defined_names":1,"comments":0,"pivot_tables":0},"unopened":[],"bounds":{"document_bytes":16777216,"sheet_cells":100000,"rows_first":2000,"rows_last":500,"rows_between":2000,"halvings":0,"cell_chars":16384,"cell_head_chars":4096},"cells_cut":0,"cells_raw":0,"read":"whole","date_system":"1900"}

{"sheet":"Beszolg útmutató","index":0,"n_rows":16,"n_cols":13,"rows_kept":16,"cut":false,"hidden":false,"merged":[[0,10,0,12],[0,7,0,9],[0,1,0,3],[0,4,0,6]]}
["Plébánia: ………………..                                           2026.","1. negyed",null,null,"2. negyed",null,null,"3. negyed",null,null,"4. negyed"]
["BESZOLGÁLTATÁSOK","Jan.","Febr.","Márc.","Ápr.","Máj.","Jún.","Júl.","Aug.","Szept.","Okt.","Nov.","Dec."]
["Jeruzsálemi Szentsír - Virágvasárnap",null,null,12]
["Péterfillér - Péter és Pál apostol ünnepe",null,null,null,null,null,13]
["Prop. Fidei: Misszosvasárnap - Okt. 18.",null,null,null,null,null,null,null,null,null,14]
["Caritas vasárnap - Nov 15."," - ",null,null,null,null,null,null,null,null,null,15]
["Egyházközségtől 5%"]
["Beneficium után 5%"]
["Mise binatio és trinatio"]
["Bélyegilleték"]
["Szeminaristák utáni járandóság:"]
["Filia 5% - "]
["Filia 5% - "]
["Filia: 5% - "]
["Filia: 5% - "]
["Filia: 5% - "]

{"sheet":"Beszolg nyugta 1-2","index":1,"n_rows":25,"n_cols":11,"rows_kept":25,"cut":false,"hidden":false,"merged":[[23,2,23,4],[23,8,23,10],[0,9,0,10],[0,7,0,8],[0,1,0,2],[0,3,0,4]]}
[{"$f":"'Beszolg útmutató'!A1","v":"Plébánia: ………………..                                           2026."},"1. negyed:           jan. febr. márc.",null,"2. negyed:            ápr. máj. jún.",null,null,{"$f":"'Beszolg útmutató'!A1","v":"Plébánia: ………………..                                           2026."},"1. negyed:           jan. febr. márc.",null,"2. negyed:            ápr. máj. jún."]
["BESZOLGÁLTATÁSOK","Dátum:","Összeg:","Dátum:","Összeg:",null,"BESZOLGÁLTATÁSOK","Dátum:","Összeg:","Dátum:","Összeg:"]
["Jeruzsálemi Szentsír - Virágvasárnap",null,{"$f":"'Beszolg útmutató'!D3","v":12},null,0,null,"Jeruzsálemi Szentsír - Virágvasárnap",null,{"$f":"C3","v":12},null,{"$f":"E3","v":0}]
["Péterfillér - Péter és Pál apostol ünnepe",null,0,null,{"$f":"'Beszolg útmutató'!G4","v":13},null,"Péterfillér - Péter és Pál apostol ünnepe",null,{"$f":"C4","v":0},null,{"$f":"E4","v":13}]
["Prop. Fidei: Missziósvasárnap - Okt. 18.","   ",0,null,0,null,"Prop. Fidei: Missziósvasárnap - Okt 19.",null,0,null,0]
["Caritas vasárnapi gyűjtés - Nov 15.",null,0,null,0,null,"Caritas vasárnapi gyűjtés - Nov 16.",null,{"$f":"C6","v":0},null,0]
["Egyházközségtől 5%",null,{"$f":"'Beszolg útmutató'!B7+'Beszolg útmutató'!C7+'Beszolg útmutató'!D7","v":0},null,{"$f":"'Beszolg útmutató'!E7+'Beszolg útmutató'!F7+'Beszolg útmutató'!G7","v":0},null,"Egyházközségtől 5%",null,0,null,0]
["Beneficium után 5%.",null,{"$f":"'Beszolg útmutató'!B8+'Beszolg útmutató'!C8+'Beszolg útmutató'!D8","v":0},null,{"$f":"'Beszolg útmutató'!E8+'Beszolg útmutató'!F8+'Beszolg útmutató'!G8","v":0},null,"Beneficium után 5%.",null,0,null,0]
["Mise binatio és trinatio",null,{"$f":"'Beszolg útmutató'!B9+'Beszolg útmutató'!C9+'Beszolg útmutató'!D9","v":0},null,{"$f":"'Beszolg útmutató'!E9+'Beszolg útmutató'!F9+'Beszolg útmutató'!G9","v":0},null,"Mise binatio és trinatio",null,0,null,0]
["Bélyegilleték",null,{"$f":"'Beszolg útmutató'!B10+'Beszolg útmutató'!C10+'Beszolg útmutató'!D10","v":0},null,{"$f":"'Beszolg útmutató'!E10+'Beszolg útmutató'!F10+'Beszolg útmutató'!G10","v":0},null,"Bélyegilleték megváltása",null,0,null,0]
["Szeminaristák utáni járandóság:",null,{"$f":"'Beszolg útmutató'!B11+'Beszolg útmutató'!C11+'Beszolg útmutató'!D11","v":0},null,{"$f":"'Beszolg útmutató'!E11+'Beszolg útmutató'!F11+'Beszolg útmutató'!G11","v":0},null,"Szeminaristák utáni járandóság:",null,0,null,0]
[{"$f":"'Beszolg útmutató'!A12","v":"Filia 5% - "},null,{"$f":"'Beszolg útmutató'!B12+'Beszolg útmutató'!C12+'Beszolg útmutató'!D12","v":0},null,{"$f":"'Beszolg útmutató'!E12+'Beszolg útmutató'!F12+'Beszolg útmutató'!G12","v":0},null,{"$f":"'Beszolg útmutató'!A12","v":"Filia 5% - "},null,0,null,0]
[{"$f":"'Beszolg útmutató'!A13","v":"Filia 5% - "},null,{"$f":"'Beszolg útmutató'!B13+'Beszolg útmutató'!C13+'Beszolg útmutató'!D13","v":0},null,{"$f":"'Beszolg útmutató'!E13+'Beszolg útmutató'!F13+'Beszolg útmutató'!G13","v":0},null,{"$f":"'Beszolg útmutató'!A13","v":"Filia 5% - "},null,0,null,0]
[{"$f":"'Beszolg útmutató'!A14","v":"Filia: 5% - "},null,{"$f":"'Beszolg útmutató'!B14+'Beszolg útmutató'!C14+'Beszolg útmutató'!D14","v":0},null,{"$f":"'Beszolg útmutató'!E14+'Beszolg útmutató'!F14+'Beszolg útmutató'!G14","v":0},null,{"$f":"'Beszolg útmutató'!A14","v":"Filia: 5% - "},null,0,null,0]
[{"$f":"'Beszolg útmutató'!A15","v":"Filia: 5% - "},null,{"$f":"'Beszolg útmutató'!B15+'Beszolg útmutató'!C15+'Beszolg útmutató'!D15","v":0},null,{"$f":"'Beszolg útmutató'!E15+'Beszolg útmutató'!F15+'Beszolg útmutató'!G15","v":0},null,{"$f":"'Beszolg útmutató'!A15","v":"Filia: 5% - "},null,0,null,0]
[{"$f":"'Beszolg útmutató'!A16","v":"Filia: 5% - "},null,{"$f":"'Beszolg útmutató'!B16+'Beszolg útmutató'!C16+'Beszolg útmutató'!D16","v":0},null,{"$f":"'Beszolg útmutató'!E16+'Beszolg útmutató'!F16+'Beszolg útmutató'!G16","v":0},null,{"$f":"'Beszolg útmutató'!A16","v":"Filia: 5% - "},null,0,null,0]
[0,null,{"$f":"'Beszolg útmutató'!B17+'Beszolg útmutató'!C17+'Beszolg útmutató'!D17","v":0},null,{"$f":"'Beszolg útmutató'!E17+'Beszolg útmutató'!F17+'Beszolg útmutató'!G17","v":0},null,0,null,0,null,0]
[{"$f":"'Beszolg útmutató'!A18","v":0},null,{"$f":"'Beszolg útmutató'!B18+'Beszolg útmutató'!C18+'Beszolg útmutató'!D18","v":0},null,{"$f":"'Beszolg útmutató'!E18+'Beszolg útmutató'!F18+'Beszolg útmutató'!G18","v":0},null,{"$f":"'Beszolg útmutató'!A18","v":0},null,0,null,0]
[{"$f":"'Beszolg útmutató'!A19","v":0},null,{"$f":"'Beszolg útmutató'!B19+'Beszolg útmutató'!C19+'Beszolg útmutató'!D19","v":0},null,{"$f":"'Beszolg útmutató'!E19+'Beszolg útmutató'!F19+'Beszolg útmutató'!G19","v":0},null,{"$f":"'Beszolg útmutató'!A19","v":0},null,0,null,0]
[{"$f":"'Beszolg útmutató'!A20","v":0},null,{"$f":"'Beszolg útmutató'!B20+'Beszolg útmutató'!C20+'Beszolg útmutató'!D20","v":0},null,{"$f":"'Beszolg útmutató'!E20+'Beszolg útmutató'!F20+'Beszolg útmutató'!G20","v":0},null,{"$f":"'Beszolg útmutató'!A20","v":0},null,0,null,0]
["Ö s s z e s e n:",null,{"$f":"SUM(C3:C20)","v":12},null,{"$f":"SUM(E3:E20)","v":13},null,"Ö s s z e s e n:",null,{"$f":"SUM(I3:I20)","v":12},null,{"$f":"SUM(K3:K20)","v":13}]
["Hely, dátum: ","PH",null,null,null,null,"Hely, dátum: ","PH"]
[]
[]
["átadó",null,null,"átvevő",null,null,"átadó",null,null,"átvevő"]

{"sheet":"Beszolg nyugta 3-4","index":2,"n_rows":25,"n_cols":11,"rows_kept":25,"cut":false,"hidden":false,"merged":[[23,2,23,4],[23,8,23,10],[0,9,0,10],[0,7,0,8],[0,1,0,2],[0,3,0,4]]}
[{"$f":"'Beszolg útmutató'!A1","v":"Plébánia: ………………..                                           2026."},"3. negyed:           júl. aug. szept.",null,"4. negyed:            okt. nov. dec.",null,null,{"$f":"'Beszolg útmutató'!A1","v":"Plébánia: ………………..                                           2026."},"3. negyed:           júl. aug. szept.",null,"4. negyed:            okt. nov. dec."]
["BESZOLGÁLTATÁSOK","Dátum:","Összeg:","Dátum:","Összeg:",null,"BESZOLGÁLTATÁSOK","Dátum:","Összeg:","Dátum:","Összeg:"]
["Jeruzsálemi Szentsír - Virágvasárnap",null,0,null,0,null,"Jeruzsálemi Szentsír - Virágvasárnap",null,{"$f":"C3","v":0},null,{"$f":"E3","v":0}]
["Péterfillér - Péter és Pál apostol ünnepe",null,0,null,0,null,"Péterfillér - Péter és Pál apostol ünnepe",null,0,null,0]
["Prop. Fidei: Missziósvasárnap - Okt. 19.","   ",0,null,{"$f":"'Beszolg útmutató'!K5","v":14},null,"Prop. Fidei: Missziósvasárnap - Okt. 19.",null,0,null,14]
["Caritas vasárnapi gyűjtés - Nov 16.",null,0,null,{"$f":"'Beszolg útmutató'!L6","v":15},null,"Caritas vasárnapi gyűjtés - Nov 16.",null,{"$f":"C6","v":0},null,{"$f":"E6","v":15}]
["Egyházközségtől 5%",null,{"$f":"'Beszolg útmutató'!H7+'Beszolg útmutató'!I7+'Beszolg útmutató'!J7","v":0},null,{"$f":"'Beszolg útmutató'!K7+'Beszolg útmutató'!L7+'Beszolg útmutató'!M7","v":0},null,"Egyházközségtől 5%",null,0,null,0]
["Beneficium után 5%.",null,{"$f":"'Beszolg útmutató'!H8+'Beszolg útmutató'!I8+'Beszolg útmutató'!J8","v":0},null,{"$f":"'Beszolg útmutató'!K8+'Beszolg útmutató'!L8+'Beszolg útmutató'!M8","v":0},null,"Beneficium után 5%.",null,0,null,0]
["Mise binatio és trinatio",null,{"$f":"'Beszolg útmutató'!H9+'Beszolg útmutató'!I9+'Beszolg útmutató'!J9","v":0},null,{"$f":"'Beszolg útmutató'!K9+'Beszolg útmutató'!L9+'Beszolg útmutató'!M9","v":0},null,"Mise binatio és trinatio",null,0,null,0]
["Bélyegilleték megváltása",null,{"$f":"'Beszolg útmutató'!H10+'Beszolg útmutató'!I10+'Beszolg útmutató'!J10","v":0},null,{"$f":"'Beszolg útmutató'!K10+'Beszolg útmutató'!L10+'Beszolg útmutató'!M10","v":0},null,"Bélyegilleték megváltása",null,0,null,0]
["Szeminaristák utáni járandóság:",null,{"$f":"'Beszolg útmutató'!H11+'Beszolg útmutató'!I11+'Beszolg útmutató'!J11","v":0},null,{"$f":"'Beszolg útmutató'!K11+'Beszolg útmutató'!L11+'Beszolg útmutató'!M11","v":0},null,"Szeminaristák utáni járandóság:",null,0,null,0]
[{"$f":"'Beszolg útmutató'!A12","v":"Filia 5% - "},null,{"$f":"'Beszolg útmutató'!H12+'Beszolg útmutató'!I12+'Beszolg útmutató'!J12","v":0},null,{"$f":"'Beszolg útmutató'!K12+'Beszolg útmutató'!L12+'Beszolg útmutató'!M12","v":0},null,{"$f":"'Beszolg útmutató'!A12","v":"Filia 5% - "},null,0,null,0]
[{"$f":"'Beszolg útmutató'!A13","v":"Filia 5% - "},null,{"$f":"'Beszolg útmutató'!H13+'Beszolg útmutató'!I13+'Beszolg útmutató'!J13","v":0},null,{"$f":"'Beszolg útmutató'!K13+'Beszolg útmutató'!L13+'Beszolg útmutató'!M13","v":0},null,{"$f":"'Beszolg útmutató'!A13","v":"Filia 5% - "},null,0,null,0]
[{"$f":"'Beszolg útmutató'!A14","v":"Filia: 5% - "},null,{"$f":"'Beszolg útmutató'!H14+'Beszolg útmutató'!I14+'Beszolg útmutató'!J14","v":0},null,{"$f":"'Beszolg útmutató'!K14+'Beszolg útmutató'!L14+'Beszolg útmutató'!M14","v":0},null,{"$f":"'Beszolg útmutató'!A14","v":"Filia: 5% - "},null,0,null,0]
[{"$f":"'Beszolg útmutató'!A15","v":"Filia: 5% - "},null,{"$f":"'Beszolg útmutató'!H15+'Beszolg útmutató'!I15+'Beszolg útmutató'!J15","v":0},null,{"$f":"'Beszolg útmutató'!K15+'Beszolg útmutató'!L15+'Beszolg útmutató'!M15","v":0},null,{"$f":"'Beszolg útmutató'!A15","v":"Filia: 5% - "},null,0,null,0]
[{"$f":"'Beszolg útmutató'!A16","v":"Filia: 5% - "},null,{"$f":"'Beszolg útmutató'!H16+'Beszolg útmutató'!I16+'Beszolg útmutató'!J16","v":0},null,{"$f":"'Beszolg útmutató'!K16+'Beszolg útmutató'!L16+'Beszolg útmutató'!M16","v":0},null,{"$f":"'Beszolg útmutató'!A16","v":"Filia: 5% - "},null,0,null,0]
[0,null,0,null,0,null,0,null,0,null,0]
[{"$f":"'Beszolg útmutató'!A18","v":0},null,{"$f":"'Beszolg útmutató'!H18+'Beszolg útmutató'!I18+'Beszolg útmutató'!J18","v":0},null,{"$f":"'Beszolg útmutató'!K18+'Beszolg útmutató'!L18+'Beszolg útmutató'!M18","v":0},null,{"$f":"'Beszolg útmutató'!A18","v":0},null,0,null,0]
[{"$f":"'Beszolg útmutató'!A19","v":0},null,{"$f":"'Beszolg útmutató'!H19+'Beszolg útmutató'!I19+'Beszolg útmutató'!J19","v":0},null,{"$f":"'Beszolg útmutató'!K19+'Beszolg útmutató'!L19+'Beszolg útmutató'!M19","v":0},null,{"$f":"'Beszolg útmutató'!A19","v":0},null,0,null,0]
[{"$f":"'Beszolg útmutató'!A20","v":0},null,{"$f":"'Beszolg útmutató'!H20+'Beszolg útmutató'!I20+'Beszolg útmutató'!J20","v":0},null,{"$f":"'Beszolg útmutató'!K20+'Beszolg útmutató'!L20+'Beszolg útmutató'!M20","v":0},null,{"$f":"'Beszolg útmutató'!A20","v":0},null,0,null,0]
["Ö s s z e s e n:",null,{"$f":"SUM(C3:C20)","v":0},null,{"$f":"SUM(E3:E20)","v":29},null,"Ö s s z e s e n:",null,{"$f":"SUM(I3:I20)","v":0},null,{"$f":"SUM(K3:K20)","v":29}]
["Hely, dátum: ","PH",null,null,null,null,"Hely, dátum:","PH"]
[]
[]
["átadó",null,null,"átvevő",null,null,"átadó",null,null,"átvevő"]